fUSD/lending_fUSD_20250512
["ID","MTS","AMOUNT","RATE_DAILY","PERIOD"]
[360825365,1747046152797,-216.00985017,0.00012097,2]
[360825366,1747046167432,-186.20793429,0.00012097,2]
[360825367,1747046182873,-208.66919107,0.00012097,2]
[360825368,1747046182895,-72.13961632,0.00012097,2]
[360825369,1747046197532,-208.67410497,0.00012096,2]
[360825370,1747046212319,-75.31604486,0.00012096,2]
[360825371,1747046212350,-226.21395514,0.00012096,2]
[360825372,1747046227338,-214.13273447,0.00012095,2]
[360825373,1747046231902,150.0,0.00013699,7]
[360825374,1747046242305,-85.86726553,0.00012095,2]
[360825375,1747046242335,-134.3279993,0.00012096,2]
[360825376,1747046257527,-139.45804556,0.00012096,2]
[360825377,1747046257557,-145.43204196,0.00012096,2]
[360825378,1747046272314,-215.10991248,0.00012096,2]
[360825379,1747046287374,-139.45804556,0.00012096,2]
[360825380,1747046287404,-212.67324726,0.00012096,2]
[360825381,1747046302331,-286.48516246,0.00012096,2]
[360825383,1747046312734,-0.84159028,0.00012096,2]
[360825384,1747046312761,-288.94082849,0.00012096,2]
[360825385,1747046317368,-41.41656737,0.00012096,2]
[360825386,1747046317398,-278.07854186,0.00012096,2]
[360825387,1747046333429,-247.89398328,0.00012095,2]
[360825388,1747046347365,-175.00990309,0.00012095,2]
[360825389,1747046362349,-77.09611363,0.00012095,2]
[360825390,1747046362372,-94.74947806,0.00012095,2]
[360825391,1747046377830,-207.42483919,0.00012095,2]
[360825392,1747046392456,-197.82568275,0.00012095,2]
[360825393,1747046392486,-63.84507429,0.00012095,2]
[360825394,1747046407789,-223.36481263,0.00012095,2]
[360825395,1747046422894,-193.64017076,0.00012095,2]
[360825396,1747046422916,-103.46407029,0.00012095,2]
[360825397,1747046437275,-144.42991299,0.00012095,2]
[360825398,1747046437298,-11.58511343,0.00012095,2]
[360825399,1747046452956,-203.52379789,0.00012095,2]
[360825401,1747046525264,268.41729577,0.00013699,7]
[360825402,1747046572320,-75.4993754,0.00012095,2]
[360825403,1747046572349,-177.6824894,0.00012095,2]
[360825404,1747046587274,-117.32544481,0.00012095,2]
[360825405,1747046587300,-111.30714372,0.00012095,2]
[360825406,1747046602345,-141.87472108,0.00012095,2]
[360825407,1747046602374,-108.12527892,0.00012095,2]
[360825408,1747046645527,529.69054078,0.00015,7]
[360825413,1747046917934,-241.24088796,0.00012096,2]
[360825414,1747046932274,-8.75911204,0.00012096,2]
[360825428,1747047032039,-257.57,0.00012185,2]
[360825429,1747047032050,-250.0,0.00012195,2]
[360825430,1747047032059,-250.0,0.00012204,2]
[360825431,1747047032068,-39.41009551,0.00012205,2]
[360825432,1747047032080,-129.87105313,0.00012205,2]
[360825433,1747047032090,-1200.0,0.00012205,2]
[360825434,1747047032100,-300.0,0.00012205,2]
[360825435,1747047032110,-300.0,0.00012205,2]
[360825436,1747047032119,-200.0,0.00012206,2]
[360825437,1747047032128,-102.06295415,0.00012206,2]
[360825438,1747047032146,-1449.73368001,0.00012206,2]
[360825439,1747047032157,-3173.39050483,0.00012206,2]
[360825440,1747047032173,-518.22733821,0.00012206,2]
[360825441,1747047032253,-700.0,0.00012206,2]
[360825442,1747047032306,-9035.0155228,0.00012206,2]
[360825443,1747047032316,-165.75,0.00012255,2]
[360825444,1747047032326,-250.0,0.00012437,2]
[360825445,1747047032335,-1488.9,0.00012566,2]
[360825446,1747047032345,-474.24,0.00012647,2]
[360825447,1747047032354,-1000.0,0.00012672,2]
[360825449,1747047032363,-150.14,0.00012696,2]
[360825451,1747047032376,-1276.50691985,0.000128,2]
[360825452,1747047032385,-467.99,0.000128,2]
[360825454,1747047032394,-150.14,0.00012918,2]
[360825455,1747047032404,-150.0,0.00012919,2]
[360825456,1747047032413,-151.0,0.0001292,2]
[360825457,1747047032423,-151.0,0.0001292,2]
[360825458,1747047032432,-151.0,0.0001292,2]
[360825459,1747047032441,-151.0,0.0001292,2]
[360825460,1747047032451,-151.0,0.0001292,2]
[360825461,1747047032461,-151.0,0.0001292,2]
[360825462,1747047032470,-151.0,0.0001292,2]
[360825463,1747047032479,-151.0,0.0001292,2]
[360825464,1747047032488,-151.0,0.0001292,2]
[360825465,1747047032498,-151.0,0.0001292,2]
[360825466,1747047032507,-151.0,0.0001292,2]
[360825467,1747047032516,-151.0,0.0001292,2]
[360825468,1747047032525,-151.0,0.0001292,2]
[360825469,1747047032535,-151.0,0.0001292,2]
[360825470,1747047032544,-151.0,0.0001292,2]
[360825471,1747047032554,-151.0,0.0001292,2]
[360825472,1747047032566,-151.0,0.0001292,2]
[360825473,1747047032576,-151.0,0.0001292,2]
[360825474,1747047032585,-151.0,0.0001292,2]
[360825475,1747047032595,-151.0,0.0001292,2]
[360825476,1747047032604,-150.14,0.00012923,2]
[360825477,1747047032613,-2181.66,0.00012923,2]
[360825478,1747047032623,-150.14,0.00012928,2]
[360825479,1747047032632,-7747.91,0.00012928,2]
[360825480,1747047032643,-1038.02,0.00012928,2]
[360825481,1747047032653,-999.99,0.00012928,2]
[360825482,1747047032663,-150.14,0.00012933,2]
[360825483,1747047032672,-150.14,0.00012938,2]
[360825484,1747047032681,-150.14,0.00012943,2]
[360825485,1747047032690,-150.14,0.00012948,2]
[360825486,1747047032700,-150.14,0.00012953,2]
[360825487,1747047032709,-150.14,0.00012958,2]
[360825488,1747047032718,-150.14,0.00012963,2]
[360825489,1747047032728,-150.14,0.00012968,2]
[360825490,1747047032737,-150.14,0.00012973,2]
[360825491,1747047032746,-150.14,0.00012978,2]
[360825492,1747047032755,-150.14,0.00012983,2]
[360825493,1747047032764,-207.4,0.00013003,2]
[360825494,1747047032773,-1169.05,0.00013152,2]
[360825495,1747047032783,-590.36,0.000132,2]
[360825496,1747047032792,-803.73,0.000133,2]
[360825497,1747047032802,-914.34,0.000133,2]
[360825498,1747047032811,-803.73,0.000133,2]
[360825499,1747047032821,-352.72,0.0001337,2]
[360825500,1747047032830,-420.0,0.00013396,2]
[360825501,1747047032839,-420.0,0.00013396,2]
[360825502,1747047032848,-250.0,0.00013404,2]
[360825503,1747047032859,-1680.0,0.00013425,2]
[360825504,1747047032871,-828.19620056,0.00013487,2]
[360825505,1747047032880,-2644.2318,0.00013498,2]
[360825506,1747047032889,-415.6829,0.00013498,2]
[360825507,1747047032899,-2666.66666,0.0001356,2]
[360825508,1747047032908,-1000.0,0.00013583,2]
[360825509,1747047032917,-2298.3589,0.00013597,2]
[360825510,1747047032926,-1549.83719666,0.00013597,2]
[360825511,1747047032936,-838.715,0.00013598,2]
[360825512,1747047032946,-163.5799885,0.00013598,2]
[360825513,1747047032955,-483.1075821,0.0001363,2]
[360825514,1747047032965,-1000.0,0.00013682,2]
[360825515,1747047032974,-930.0,0.00013683,2]
[360825516,1747047032984,-1304.0,0.00013683,2]
[360825517,1747047032993,-798.0,0.00013683,2]
[360825518,1747047033001,-628.0,0.00013683,2]
[360825519,1747047033011,-5939.0,0.00013683,2]
[360825520,1747047033020,-1146.0,0.00013683,2]
[360825521,1747047033029,-1249.0,0.00013683,2]
[360825522,1747047033039,-918.0,0.00013683,2]
[360825523,1747047033048,-576.0,0.00013683,2]
[360825524,1747047033058,-552.0,0.00013683,2]
[360825525,1747047033067,-1456.0,0.00013683,2]
[360825526,1747047033076,-154.0,0.00013683,2]
[360825527,1747047033086,-6818.0,0.00013683,2]
[360825528,1747047033095,-836.0,0.00013683,2]
[360825529,1747047033105,-879.0,0.00013683,2]
[360825530,1747047033115,-77856.9866666,0.00013697,2]
[360825531,1747047033124,-77856.9866666,0.00013697,2]
[360825532,1747047033134,-6969.3331335,0.00013697,2]
[360825533,1747047033144,-74763.5361666,0.00013697,2]
[360825534,1747047033153,-1554.36474846,0.00013698,2]
[360825535,1747047033163,-101608.00394778,0.00013698,2]
[360825536,1747047033178,-577.83489551,0.00013698,2]
[360825542,1747047038115,-1023.1999999,0.00013698,2]
[360825543,1747047038169,-30430.38394066,0.00013698,2]
[360825544,1747047038181,-681.19999659,0.00013698,2]
[360825545,1747047038191,-589.97551441,0.00013698,2]
[360825546,1747047038202,-2091.46060059,0.00013698,2]
[360825547,1747047038276,-292.95000002,0.00013698,2]
[360825605,1747047040226,-3041.58381051,0.00013683,2]
[360825606,1747047040238,-652.01062997,0.00013683,2]
[360825607,1747047040250,-335.40555952,0.00013683,2]
[360825608,1747047040259,-29235.75397801,0.00013698,2]
[360825610,1747047040744,-1029.61234503,0.00013698,2]
[360825611,1747047040755,-305.0000025,0.00013698,2]
[360825612,1747047040766,-1983.63196406,0.00013698,2]
[360825613,1747047040791,-1962.02666871,0.00013698,2]
[360825614,1747047040802,-395.472,0.00013698,2]
[360825627,1747047043061,-271.92,0.00013698,2]
[360825628,1747047043329,-755.2,0.00013698,2]
[360825629,1747047043386,-150.0,0.00013683,2]
[360825630,1747047043396,-409.41141199,0.00013698,2]
[360825631,1747047043440,-37290.55893189,0.00013698,2]
[360825632,1747047043449,-402.77852882,0.00013698,2]
[360825633,1747047043458,-400.0,0.00013698,2]
[360825634,1747047043468,-156.14039701,0.00013698,2]
[360825635,1747047043477,-400.0,0.00013698,2]
[360825636,1747047043486,-506.93,0.00013698,2]
[360825637,1747047043496,-400.0,0.00013698,2]
[360825638,1747047043506,-400.0,0.00013698,2]
[360825639,1747047043515,-175.65369827,0.00013698,2]
[360825640,1747047043524,-400.0,0.00013698,2]
[360825641,1747047043535,-5046.54780132,0.00013698,2]
[360825642,1747047043545,-500.0,0.00013698,2]
[360825643,1747047043555,-400.0,0.00013698,2]
[360825644,1747047043567,-630.54,0.00013698,2]
[360825645,1747047043576,-400.0,0.00013698,2]
[360825646,1747047043586,-400.0,0.00013698,2]
[360825647,1747047043595,-400.0,0.00013698,2]
[360825648,1747047043607,-400.0,0.00013698,2]
[360825649,1747047043618,-400.0,0.00013698,2]
[360825650,1747047043628,-400.0,0.00013698,2]
[360825651,1747047043638,-400.0,0.00013698,2]
[360825652,1747047043647,-498.96,0.00013698,2]
[360825653,1747047043657,-400.0,0.00013698,2]
[360825654,1747047043666,-400.0,0.00013698,2]
[360825655,1747047043676,-400.0,0.00013698,2]
[360825656,1747047043686,-400.0,0.00013698,2]
[360825657,1747047043696,-462.78,0.00013698,2]
[360825658,1747047043706,-400.0,0.00013698,2]
[360825659,1747047043715,-400.0,0.00013698,2]
[360825660,1747047043725,-324.47962569,0.00013698,2]
[360825661,1747047043734,-400.0,0.00013698,2]
[360825662,1747047043743,-400.0,0.00013698,2]
[360825663,1747047043753,-400.0,0.00013698,2]
[360825664,1747047043763,-400.0,0.00013698,2]
[360825665,1747047043772,-400.0,0.00013698,2]
[360825666,1747047043781,-787.36,0.00013698,2]
[360825667,1747047043791,-1387.3,0.00013698,2]
[360825668,1747047043800,-423.95,0.00013698,2]
[360825669,1747047043810,-400.0,0.00013698,2]
[360825670,1747047043820,-400.0,0.00013698,2]
[360825671,1747047043829,-400.0,0.00013698,2]
[360825672,1747047043840,-400.0,0.00013698,2]
[360825673,1747047043851,-400.0,0.00013698,2]
[360825674,1747047043861,-400.0,0.00013698,2]
[360825675,1747047043871,-400.0,0.00013698,2]
[360825676,1747047043881,-400.0,0.00013698,2]
[360825677,1747047043890,-400.0,0.00013698,2]
[360825678,1747047043900,-400.0,0.00013698,2]
[360825679,1747047043910,-400.0,0.00013698,2]
[360825680,1747047043920,-400.0,0.00013698,2]
[360825681,1747047043930,-400.0,0.00013698,2]
[360825682,1747047043939,-450.0,0.00013698,2]
[360825683,1747047043949,-400.0,0.00013698,2]
[360825684,1747047043958,-180.022044,0.00013698,2]
[360825685,1747047043968,-400.0,0.00013698,2]
[360825686,1747047043977,-400.0,0.00013698,2]
[360825687,1747047043986,-400.0,0.00013698,2]
[360825688,1747047043996,-400.0,0.00013698,2]
[360825689,1747047044006,-400.0,0.00013698,2]
[360825690,1747047044015,-400.0,0.00013698,2]
[360825691,1747047044024,-400.0,0.00013698,2]
[360825692,1747047044034,-400.0,0.00013698,2]
[360825693,1747047044043,-453.88,0.00013698,2]
[360825694,1747047044052,-400.0,0.00013698,2]
[360825695,1747047044062,-151.0,0.00013699,2]
[360825696,1747047044071,-573.13,0.00013699,2]
[360825697,1747047044081,-200.0,0.00013699,2]
[360825698,1747047044090,-449.0,0.00013699,2]
[360825699,1747047044099,-500.0,0.00013699,2]
[360825700,1747047044108,-1000.0,0.00013699,2]
[360825701,1747047044118,-1000.0,0.00013699,2]
[360825702,1747047044127,-1000.0,0.00013699,2]
[360825703,1747047044136,-1000.0,0.00013699,2]
[360825704,1747047044145,-1000.0,0.00013699,2]
[360825705,1747047044154,-1000.0,0.00013699,2]
[360825706,1747047044163,-1000.0,0.00013699,2]
[360825707,1747047044172,-1000.0,0.00013699,2]
[360825708,1747047044181,-1000.0,0.00013699,2]
[360825709,1747047044190,-1000.0,0.00013699,2]
[360825710,1747047044199,-1000.0,0.00013699,2]
[360825711,1747047044209,-1000.0,0.00013699,2]
[360825712,1747047044218,-1000.0,0.00013699,2]
[360825713,1747047044227,-1000.0,0.00013699,2]
[360825714,1747047044236,-1000.0,0.00013699,2]
[360825715,1747047044246,-1000.0,0.00013699,2]
[360825716,1747047044255,-1000.0,0.00013699,2]
[360825717,1747047044264,-1000.0,0.00013699,2]
[360825718,1747047044273,-1000.0,0.00013699,2]
[360825719,1747047044283,-1000.0,0.00013699,2]
[360825720,1747047044292,-1000.0,0.00013699,2]
[360825721,1747047044301,-1000.0,0.00013699,2]
[360825722,1747047044311,-1000.0,0.00013699,2]
[360825723,1747047044320,-1000.0,0.00013699,2]
[360825724,1747047044329,-1000.0,0.00013699,2]
[360825725,1747047044339,-1000.0,0.00013699,2]
[360825726,1747047044348,-1000.0,0.00013699,2]
[360825727,1747047044358,-1000.0,0.00013699,2]
[360825728,1747047044367,-1000.0,0.00013699,2]
[360825729,1747047044376,-1000.0,0.00013699,2]
[360825730,1747047044388,-1000.0,0.00013699,2]
[360825731,1747047044398,-1000.0,0.00013699,2]
[360825732,1747047044407,-1000.0,0.00013699,2]
[360825733,1747047044416,-1000.0,0.00013699,2]
[360825734,1747047044425,-1000.0,0.00013699,2]
[360825735,1747047044435,-1000.0,0.00013699,2]
[360825736,1747047044444,-1000.0,0.00013699,2]
[360825737,1747047044453,-1000.0,0.00013699,2]
[360825738,1747047044463,-1000.0,0.00013699,2]
[360825739,1747047044472,-334.0,0.00013699,2]
[360825740,1747047044482,-457.17,0.00013699,2]
[360825741,1747047044491,-201.340876,0.00013699,2]
[360825742,1747047044500,-272.17274985,0.00013699,2]
[360825743,1747047044510,-350.0,0.00013699,2]
[360825744,1747047044519,-500.0,0.00013699,2]
[360825745,1747047044528,-500.0,0.00013699,2]
[360825746,1747047044537,-500.0,0.00013699,2]
[360825747,1747047044547,-500.0,0.00013699,2]
[360825748,1747047044562,-500.0,0.00013699,2]
[360825749,1747047044571,-500.0,0.00013699,2]
[360825750,1747047044580,-500.0,0.00013699,2]
[360825751,1747047044590,-500.0,0.00013699,2]
[360825752,1747047044601,-500.0,0.00013699,2]
[360825753,1747047044611,-500.0,0.00013699,2]
[360825754,1747047044621,-500.0,0.00013699,2]
[360825755,1747047044632,-500.0,0.00013699,2]
[360825756,1747047044642,-500.0,0.00013699,2]
[360825757,1747047044652,-500.0,0.00013699,2]
[360825758,1747047044661,-500.0,0.00013699,2]
[360825759,1747047044670,-500.0,0.00013699,2]
[360825760,1747047044679,-500.0,0.00013699,2]
[360825761,1747047044687,-500.0,0.00013699,2]
[360825762,1747047044696,-500.0,0.00013699,2]
[360825763,1747047044707,-500.0,0.00013699,2]
[360825764,1747047044717,-500.0,0.00013699,2]
[360825765,1747047044728,-500.0,0.00013699,2]
[360825766,1747047044738,-500.0,0.00013699,2]
[360825767,1747047044748,-500.0,0.00013699,2]
[360825768,1747047044758,-198.0804399,0.00013699,2]
[360825769,1747047044768,-500.0,0.00013699,2]
[360825770,1747047044777,-500.0,0.00013699,2]
[360825771,1747047044786,-500.0,0.00013699,2]
[360825772,1747047044795,-500.0,0.00013699,2]
[360825773,1747047044804,-500.0,0.00013699,2]
[360825774,1747047044814,-500.0,0.00013699,2]
[360825775,1747047044823,-500.0,0.00013699,2]
[360825776,1747047044833,-500.0,0.00013699,2]
[360825777,1747047044842,-765.91142967,0.000137,2]
[360825778,1747047044852,-250.0,0.000137,2]
[360825779,1747047044862,-250.0,0.000137,2]
[360825780,1747047044872,-250.0,0.000137,2]
[360825781,1747047044882,-250.0,0.000137,2]
[360825782,1747047044891,-250.0,0.000137,2]
[360825783,1747047044901,-250.0,0.000137,2]
[360825784,1747047044910,-250.0,0.000137,2]
[360825785,1747047044919,-265.5,0.000137,2]
[360825786,1747047044928,-834.84,0.000137,2]
[360825787,1747047044939,-185.84193,0.00013707,2]
[360825788,1747047044949,-183.818931,0.00013707,2]
[360825789,1747047044959,-1549.83719657,0.00013742,2]
[360825790,1747047044968,-151.0,0.00013759,2]
[360825791,1747047044977,-151.0,0.00013759,2]
[360825792,1747047044987,-247.78924,0.00013762,2]
[360825793,1747047044996,-200.0,0.00013784,2]
[360825794,1747047045007,-166.66,0.0001384,2]
[360825795,1747047045016,-1549.83719657,0.00013886,2]
[360825796,1747047045026,-834.84,0.0001389,2]
[360825797,1747047045036,-11478.36,0.000139,2]
[360825798,1747047045046,-192.26756628,0.000139,2]
[360825799,1747047045056,-247.78924,0.00013928,2]
[360825800,1747047045066,-185.84193,0.00013928,2]
[360825801,1747047045075,-183.818931,0.00013928,2]
[360825802,1747047045084,-800.0,0.00013972,2]
[360825803,1747047045094,-2200.0,0.00013972,2]
[360825804,1747047045103,-1834.78156913,0.00013999,2]
[360825805,1747047045113,-12326.52,0.00014,2]
[360825806,1747047045123,-11598.37,0.00014,2]
[360825807,1747047045134,-11821.15,0.00014,2]
[360825808,1747047045143,-393.04,0.00014008,2]
[360825809,1747047045152,-255.0,0.00014018,2]
[360825810,1747047045162,-1549.83719657,0.00014031,2]
[360825811,1747047045171,-276.37603619,0.00014032,2]
[360825812,1747047045180,-803.73,0.00014055,2]
[360825813,1747047045190,-456.95,0.00014055,2]
[360825814,1747047045199,-803.73,0.00014055,2]
[360825815,1747047045209,-314.74,0.00014055,2]
[360825816,1747047045218,-2666.66667,0.0001408,2]
[360825817,1747047045228,-2278.8221,0.00014137,2]
[360825818,1747047045238,-1549.83719657,0.00014176,2]
[360825819,1747047045248,-276.37603619,0.00014177,2]
[360825820,1747047045257,-704.47,0.00014192,2]
[360825821,1747047045267,-150.0,0.00014192,2]
[360825822,1747047045276,-309.94,0.00014192,2]
[360825823,1747047045286,-150.0,0.00014192,2]
[360825824,1747047045295,-352.59,0.00014192,2]
[360825825,1747047045305,-1155.86,0.00014192,2]
[360825826,1747047045315,-866.14,0.00014192,2]
[360825827,1747047045325,-474.24,0.00014228,2]
[360825828,1747047045335,-400.0,0.00014236,2]
[360825829,1747047045344,-400.0,0.00014236,2]
[360825830,1747047045355,-506.93,0.00014236,2]
[360825831,1747047045365,-506.93,0.00014236,2]
[360825832,1747047045375,-400.0,0.00014236,2]
[360825833,1747047045385,-400.0,0.00014236,2]
[360825834,1747047045394,-400.0,0.00014236,2]
[360825835,1747047045404,-400.0,0.00014236,2]
[360825836,1747047045413,-400.0,0.00014236,2]
[360825837,1747047045423,-400.0,0.00014236,2]
[360825838,1747047045432,-400.0,0.00014236,2]
[360825839,1747047045441,-400.0,0.00014236,2]
[360825840,1747047045451,-630.54,0.00014236,2]
[360825841,1747047045461,-630.54,0.00014236,2]
[360825842,1747047045471,-189.97551441,0.00014236,2]
[360825843,1747047045481,-400.0,0.00014236,2]
[360825844,1747047045491,-442.67226231,0.00014236,2]
[360825845,1747047045500,-400.0,0.00014236,2]
[360825846,1747047045510,-787.36,0.00014236,2]
[360825847,1747047045705,-1387.3,0.00014236,2]
[360825848,1747047045715,-423.95,0.00014236,2]
[360825849,1747047045725,-400.0,0.00014236,2]
[360825850,1747047045736,-167.38,0.00014236,2]
[360825851,1747047045745,-450.0,0.00014236,2]
[360825852,1747047045755,-400.0,0.00014236,2]
[360825853,1747047045764,-400.0,0.00014236,2]
[360825854,1747047045774,-400.0,0.00014236,2]
[360825855,1747047045784,-199.00170203,0.00014236,2]
[360825856,1747047045793,-400.0,0.00014236,2]
[360825857,1747047045802,-400.0,0.00014236,2]
[360825858,1747047045812,-160.35,0.00014236,2]
[360825859,1747047045822,-400.0,0.00014236,2]
[360825860,1747047045832,-400.0,0.00014236,2]
[360825861,1747047045842,-151.0,0.00014237,2]
[360825862,1747047045852,-154.939559,0.00014237,2]
[360825863,1747047045862,-151.0,0.00014237,2]
[360825864,1747047045871,-151.0,0.00014237,2]
[360825865,1747047045881,-151.0,0.00014237,2]
[360825866,1747047045891,-151.0,0.00014237,2]
[360825867,1747047045901,-151.0,0.00014237,2]
[360825868,1747047045910,-151.0,0.00014237,2]
[360825869,1747047045920,-500.0,0.00014237,2]
[360825870,1747047045930,-500.0,0.00014237,2]
[360825871,1747047045939,-500.0,0.00014237,2]
[360825872,1747047045950,-500.0,0.00014237,2]
[360825873,1747047045959,-500.0,0.00014237,2]
[360825874,1747047045968,-500.0,0.00014237,2]
[360825875,1747047045977,-500.0,0.00014237,2]
[360825876,1747047045986,-500.0,0.00014237,2]
[360825877,1747047045995,-500.0,0.00014237,2]
[360825878,1747047046005,-500.0,0.00014237,2]
[360825879,1747047046016,-500.0,0.00014237,2]
[360825880,1747047046026,-500.0,0.00014237,2]
[360825881,1747047046036,-500.0,0.00014237,2]
[360825882,1747047046045,-500.0,0.00014237,2]
[360825883,1747047046054,-500.0,0.00014237,2]
[360825884,1747047046063,-500.0,0.00014237,2]
[360825885,1747047046073,-500.0,0.00014237,2]
[360825886,1747047046083,-500.0,0.00014237,2]
[360825887,1747047046093,-500.0,0.00014237,2]
[360825888,1747047046102,-500.0,0.00014237,2]
[360825889,1747047046112,-500.0,0.00014237,2]
[360825890,1747047046121,-500.0,0.00014237,2]
[360825891,1747047046130,-500.0,0.00014237,2]
[360825892,1747047046140,-500.0,0.00014237,2]
[360825893,1747047046149,-500.0,0.00014237,2]
[360825894,1747047046159,-500.0,0.00014237,2]
[360825895,1747047046169,-500.0,0.00014237,2]
[360825896,1747047046178,-500.0,0.00014237,2]
[360825897,1747047046188,-500.0,0.00014237,2]
[360825898,1747047046198,-500.0,0.00014237,2]
[360825899,1747047046208,-500.0,0.00014237,2]
[360825900,1747047046217,-500.0,0.00014237,2]
[360825901,1747047046226,-500.0,0.00014237,2]
[360825902,1747047046235,-500.0,0.00014237,2]
[360825903,1747047046246,-500.0,0.00014237,2]
[360825904,1747047046256,-500.0,0.00014237,2]
[360825905,1747047046266,-500.0,0.00014237,2]
[360825906,1747047046276,-500.0,0.00014237,2]
[360825907,1747047046286,-500.0,0.00014237,2]
[360825908,1747047046296,-500.0,0.00014237,2]
[360825909,1747047046305,-500.0,0.00014237,2]
[360825910,1747047046315,-500.0,0.00014237,2]
[360825911,1747047046324,-500.0,0.00014237,2]
[360825912,1747047046334,-500.0,0.00014237,2]
[360825913,1747047046343,-500.0,0.00014237,2]
[360825914,1747047046353,-500.0,0.00014237,2]
[360825915,1747047046363,-500.0,0.00014237,2]
[360825916,1747047046372,-500.0,0.00014237,2]
[360825917,1747047046382,-500.0,0.00014237,2]
[360825918,1747047046391,-500.0,0.00014237,2]
[360825919,1747047046401,-500.0,0.00014237,2]
[360825920,1747047046410,-500.0,0.00014237,2]
[360825921,1747047046420,-500.0,0.00014237,2]
[360825922,1747047046429,-500.0,0.00014237,2]
[360825923,1747047046439,-500.0,0.00014237,2]
[360825924,1747047046448,-500.0,0.00014237,2]
[360825925,1747047046458,-500.0,0.00014237,2]
[360825926,1747047046468,-500.0,0.00014237,2]
[360825927,1747047046478,-500.0,0.00014237,2]
[360825928,1747047046487,-500.0,0.00014237,2]
[360825929,1747047046496,-500.0,0.00014237,2]
[360825930,1747047046506,-500.0,0.00014237,2]
[360825931,1747047046515,-500.0,0.00014237,2]
[360825932,1747047046525,-500.0,0.00014237,2]
[360825933,1747047046534,-500.0,0.00014237,2]
[360825934,1747047046543,-500.0,0.00014237,2]
[360825935,1747047046552,-500.0,0.00014237,2]
[360825936,1747047046564,-500.0,0.00014237,2]
[360825937,1747047046573,-500.0,0.00014237,2]
[360825938,1747047046583,-500.0,0.00014237,2]
[360825940,1747047046592,-500.0,0.00014237,2]
[360825941,1747047046602,-500.0,0.00014237,2]
[360825942,1747047046611,-500.0,0.00014237,2]
[360825943,1747047046620,-500.0,0.00014237,2]
[360825944,1747047046629,-500.0,0.00014237,2]
[360825945,1747047046639,-500.0,0.00014237,2]
[360825946,1747047046648,-500.0,0.00014237,2]
[360825947,1747047046658,-500.0,0.00014237,2]
[360825948,1747047046667,-500.0,0.00014237,2]
[360825949,1747047046676,-500.0,0.00014237,2]
[360825950,1747047046690,-523.0,0.00014237,2]
[360825951,1747047046700,-500.0,0.00014237,2]
[360825952,1747047046709,-500.0,0.00014237,2]
[360825953,1747047046719,-642.0,0.00014237,2]
[360825954,1747047046728,-500.0,0.00014237,2]
[360825955,1747047046738,-500.0,0.00014237,2]
[360825957,1747047046747,-500.0,0.00014237,2]
[360825959,1747047046756,-500.0,0.00014237,2]
[360825960,1747047046765,-500.0,0.00014237,2]
[360825961,1747047046775,-500.0,0.00014237,2]
[360825962,1747047046784,-500.0,0.00014237,2]
[360825963,1747047046793,-500.0,0.00014237,2]
[360825964,1747047046803,-500.0,0.00014237,2]